[Event "Fagernes Chess GM-Swiss 2025"]
[Site "Fagernes"]
[Date "2025.04.14"]
[Round "2.15"]
[White "Kaewpitakkun, Pantham"]
[Black "Ghasi, Ameet K"]
[Result "0-1"]
[Annotator "RC"]
[ECO "B46"]
[WhiteElo "2026"]
[BlackElo "2502"]
[PlyCount "38"]
[EventDate "2025.04.12"]
[EventCountry "NOR"]
[SourceTitle "playchess.com"]
[Source "ChessBase"]
[SourceQuality "1"]
[TimeControl "40/6000+30:2400+30"]

1. e4 {[%emt 0:00:06]} c5 {[%emt 0:01:46]} 2. Nf3 {[%emt 0:00:07]} e6 {[%emt 0:00:07]} 3. d4 {[%emt 0:00:18]} cxd4 {[%emt 0:00:07]} 4. Nxd4 {[%emt 0:00:10]} Nc6 {[%emt 0:00:05]} 5. Nc3 {[%emt 0:00:08]} a6 {[%emt 0:00:08]} 6. Be3 {[%emt 0:02:13]} Nf6 {[%emt 0:01:36]} 7. a3 {[%emt 0:02:06]} Be7 {[%emt 0:01:11]} 8. Qe2 {[%emt 0:06:26]} Qc7 {[%emt 0:07:07]} 9. O-O-O {[%emt 0:01:51]} b5 {[%emt 0:07:42]} 10. f3 {[%emt 0:03:48]} Nxd4 {[%emt 0:15:01]} 11. Bxd4 {[%emt 0:03:21]} e5 {[%emt 0:02:15]} 12. Bf2 {[%emt 0:03:13]} Bxa3 {[%emt 0:03:06]} 13. Nd5 {[%emt 0:04:23]} Nxd5 {[%emt 0:00:51]} 14. Rxd5 {[%emt 0:00:24]} Be7 {[%emt 0:04:20]} 15. Bg3 {[%emt 0:02:07]} d6 {[%emt 0:02:39]} 16. f4 {[%emt 0:03:00]} exf4 {[%emt 0:08:41]} 17. Bxf4 {[%emt 0:00:49]} Be6 {[%emt 0:00:46]} 18. Qh5 {[%emt 0:07:45]} Qa5 {[%emt 0:06:23]} 19. Kb1 {[%emt 0:03:22]} Bxd5 {[%emt 0:05:31]} 0-1

[Event "Fagernes Chess GM-Swiss 2025"]
[Site "Fagernes"]
[Date "2025.04.14"]
[Round "2.16"]
[White "Rozentalis, Eduardas"]
[Black "Southcott-Moyers, Indy"]
[Result "1/2-1/2"]
[Annotator "TA"]
[ECO "C49"]
[WhiteElo "2481"]
[BlackElo "2227"]
[PlyCount "103"]
[EventDate "2025.04.12"]
[EventCountry "NOR"]
[SourceTitle "playchess.com"]
[Source "ChessBase"]
[SourceQuality "1"]
[TimeControl "40/6000+30:2400+30"]

{[%evp 13,103,0,17,18,20,0,8,0,25,14,30,28,33,0,31,31,38,34,43,42,40,38,38,38,39,37,39,26,28,15,30,18,25,24,28,17,40,32,25,26,25,26,28,27,35,35,46,28,15,0,0,0,0,0,0,0,0,0,0,-8,0,0,0,0,0,0,0,0,0,0,0,0,0,0,0,0,0,0,0,0,0,0,0,0,0,0,0,0,0,0,0,0]} 1. e4 {[%emt 0:00:03]} e5 {[%emt 0:00:11]} 2. Nf3 {[%emt 0:01:11]} Nc6 {[%emt 0:00:05]} 3. Nc3 {[%emt 0:00:23]} Nf6 {[%emt 0:00:06]} 4. Bb5 {[%emt 0:00:16]} Bb4 {[%emt 0:00:09]} 5. O-O {[%emt 0:00:43]} O-O {[%emt 0:02:37]} 6. d3 {[%emt 0:00:42]} d6 {[%emt 0:00:20][%cal Bd7d6,Bd6d5][%mdl 32]} 7. Bg5 {[%emt 0:00:53]} Ne7 {[%emt 0:07:13]} 8. Bxf6 {[%emt 0:03:46]} gxf6 {[%emt 0:00:07]} 9. Ne2 {[%emt 0:00:11][%cal Bc3e2,Be2g3,Bg3f5][%mdl 32]} c6 {[%emt 0:07:53]} 10. Ba4 {[%emt 0:00:21]} d5 {[%emt 0:09:18]} 11. Ng3 {[%emt 0:02:34]} Ng6 {[%emt 0:12:34]} 12. c3 {[%emt 0:17:20]} Be7 {[%emt 0:07:26]} 13. Nf5 {[%emt 0:07:25]} dxe4 {[%emt 0:10:49]} 14. dxe4 {[%emt 0:00:25]} Qxd1 {[%emt 0:06:24]} 15. Rfxd1 {[%emt 0:02:22]} Be6 {[%emt 0:05:51]} 16. Bb3 {[%emt 0:06:54]} Rfd8 {[%emt 0:01:46]} 17. Bxe6 {[%emt 0:01:24]} fxe6 {[%emt 0:00:06]} 18. Nxe7+ {[%emt 0:00:05]} Nxe7 {[%emt 0:00:07]} 19. Kf1 {[%emt 0:00:15]} Kf7 {[%emt 0:01:41]} 20. Ke2 {[%emt 0:00:36]} Ng6 {[%emt 0:00:22]} 21. g3 {[%emt 0:00:18]} Ke7 {[%emt 0:00:08]} 22. Nd2 {[%emt 0:04:21]} Nh8 {[%emt 0:06:26]} 23. Nc4 {[%emt 0:04:49]} Nf7 {[%emt 0:03:06]} 24. Ke3 {[%emt 0:01:55]} Nd6 {[%emt 0:03:35]} 25. Nxd6 {[%emt 0:02:03]} Rxd6 {[%emt 0:00:06]} 26. Rxd6 {[%emt 0:00:07]} Kxd6 $14 {[%emt 0:00:03][%mdl 4096] Endgame. KR-KR} 27. Rd1+ {[%emt 0:00:11]} Ke7 {[%emt 0:00:05]} 28. c4 {[%emt 0:03:00]} c5 {[%emt 0:03:34]} 29. Rd3 {[%emt 0:00:58]} Rb8 {[%emt 0:13:04]} 30. a4 {[%emt 0:04:59]} b6 {[%emt 0:01:36]} 31. f4 {[%emt 0:04:26] The position is equal.} exf4+ {[%emt 0:00:48]} 32. Kxf4 {[%emt 0:00:29]} Rg8 {[%emt 0:01:06]} 33. a5 {[%emt 0:04:33]} e5+ {[%emt 0:00:33]} 34. Kf3 {[%emt 0:01:22]} bxa5 {[%emt 0:04:31]} 35. Rb3 {[%emt 0:04:27]} Rd8 {[%emt 0:00:04]} 36. h3 {[%emt 0:02:08]} Rd4 {[%emt 0:01:18][%cal Oa5a4]} 37. Rb7+ {[%emt 0:00:26]} Ke6 {[%emt 0:00:08]} 38. Rxh7 {[%emt 0:01:41]} Rd3+ $1 {[%emt 0:02:21]} 39. Kf2 {[%emt 0:03:05]} ({But not} 39. Kg4 Re3 $15) 39... Rd2+ {[%emt 0:00:52]} 40. Ke3 {[%emt 0:00:13]} Rxb2 {[%emt 0:00:49]} 41. Rxa7 {[%emt 0:40:08]} Rb3+ {[%emt 0:03:53]} 42. Kf2 {[%emt 0:00:00]} Rc3 {[%emt 0:03:47]} 43. Rxa5 {[%emt 0:00:00]} Rxc4 {[%emt 0:00:05]} 44. Kf3 {[%emt 0:00:00]} Kf7 {[%emt 0:00:21]} 45. h4 {[%emt 0:00:00]} Kg6 {[%emt 0:05:53]} 46. Ra6 {[%emt 0:00:00]} Rb4 {[%emt 0:04:25]} 47. Rc6 {[%emt 0:00:00]} Rc4 {[%emt 0:00:08]} 48. Rc8 {[%emt 0:00:00]} Kh6 {[%emt 0:05:29]} 49. Kg4 {[%emt 0:00:00] [#] Kf5 would now be deadly.} Rxe4+ {[%emt 0:00:12]} 50. Kf5 {[%emt 0:00:00]} Re3 {[%emt 0:00:04]} 51. Kxf6 {[%emt 0:00:00][%cal Rc8h8]} Rf3+ $1 {[%emt 0:00:01]} 52. Kxe5 {[%emt 0:00:09] Weighted Error Value: White=0.04 (flawless) /Black=0.05 (flawless) .  Inaccurate:     	---       	Black=1      OK:         	White=21    	Black=21     Best:        	---       	Black=1      Strong:       	---       	Black=2} 1/2-1/2

[Event "Fagernes Chess GM-Swiss 2025"]
[Site "Fagernes"]
[Date "2025.04.14"]
[Round "2.17"]
[White "Kaasen, Tor Fredrik"]
[Black "Brattgjerd, Isak Vinh"]
[Result "1-0"]
[Annotator "RC"]
[ECO "B12"]
[WhiteElo "2472"]
[BlackElo "2202"]
[PlyCount "115"]
[EventDate "2025.04.12"]
[EventCountry "NOR"]
[SourceTitle "playchess.com"]
[Source "ChessBase"]
[SourceQuality "1"]
[TimeControl "40/6000+30:2400+30"]

1. e4 {[%emt 0:00:47]} c6 {[%emt 0:01:26]} 2. d4 {[%emt 0:00:27]} d5 {[%emt 0:00:12]} 3. e5 {[%emt 0:00:44]} c5 {[%emt 0:00:05]} 4. Nf3 {[%emt 0:01:17]} cxd4 {[%emt 0:00:07]} 5. Nxd4 {[%emt 0:00:42]} e6 {[%emt 0:00:55]} 6. Nd2 {[%emt 0:02:00]} Nc6 {[%emt 0:00:05]} 7. N2f3 {[%emt 0:02:09]} Nge7 {[%emt 0:03:59]} 8. Bd3 {[%emt 0:09:28]} Nxd4 {[%emt 0:10:02]} 9. Nxd4 {[%emt 0:00:54]} Nc6 {[%emt 0:00:06]} 10. Nf3 {[%emt 0:10:46]} Qc7 {[%emt 0:01:04]} 11. Bf4 {[%emt 0:04:52]} Nb4 {[%emt 0:01:41]} 12. O-O {[%emt 0:01:48]} Be7 {[%emt 0:05:03]} 13. Nd4 {[%emt 0:08:18]} Nxd3 {[%emt 0:00:30]} 14. cxd3 {[%emt 0:01:12]} O-O {[%emt 0:13:54]} 15. Qg4 {[%emt 0:02:14]} Kh8 {[%emt 0:00:43]} 16. Rac1 {[%emt 0:10:20]} Qa5 {[%emt 0:10:21]} 17. Bg5 {[%emt 0:07:12]} Bxg5 {[%emt 0:07:26]} 18. Qxg5 {[%emt 0:00:16]} Qb4 {[%emt 0:16:05]} 19. Nb3 {[%emt 0:12:42]} b6 {[%emt 0:00:42]} 20. Rc3 {[%emt 0:16:18]} Ba6 {[%emt 0:01:42]} 21. Rfc1 {[%emt 0:03:13]} h6 {[%emt 0:05:04]} 22. Qe3 {[%emt 0:12:13]} Rac8 {[%emt 0:08:49]} 23. Qd4 {[%emt 0:01:36]} Qxd4 {[%emt 0:03:45]} 24. Nxd4 {[%emt 0:00:02]} Rxc3 {[%emt 0:00:11]} 25. Rxc3 {[%emt 0:00:05]} Rc8 {[%emt 0:00:04]} 26. Rxc8+ {[%emt 0:00:21]} Bxc8 {[%emt 0:00:01]} 27. b4 {[%emt 0:01:10]} g5 {[%emt 0:04:00]} 28. Nb5 {[%emt 0:00:51]} Ba6 {[%emt 0:00:32]} 29. Nxa7 {[%emt 0:00:26]} Bxd3 {[%emt 0:00:06]} 30. a4 {[%emt 0:00:34]} Kg7 {[%emt 0:01:08]} 31. f3 {[%emt 0:00:25]} Kg6 {[%emt 0:05:22]} 32. Nc8 {[%emt 0:00:35]} Kf5 {[%emt 0:00:11]} 33. Kf2 {[%emt 0:00:23]} Kxe5 {[%emt 0:00:33]} 34. Ke3 {[%emt 0:00:27]} Bc2 {[%emt 0:01:56]} 35. Nxb6 {[%emt 0:00:11]} Kd6 {[%emt 0:00:01]} 36. Kd2 {[%emt 0:00:28]} Kc6 {[%emt 0:01:38]} 37. a5 {[%emt 0:00:34]} Bg6 {[%emt 0:04:01]} 38. Nc8 {[%emt 0:00:11]} Kb5 {[%emt 0:00:25]} 39. Nd6+ {[%emt 0:01:08]} Ka6 {[%emt 0:00:13]} 40. Ne8 {[%emt 0:00:17]} d4 {[%emt 0:02:16]} 41. Nf6 {[%emt 0:23:11]} Kb5 {[%emt 0:13:45]} 42. Nd7 {[%emt 0:02:08]} g4 {[%emt 0:05:28]} 43. fxg4 {[%emt 0:11:35]} Be4 {[%emt 0:01:17]} 44. h4 {[%emt 0:01:03]} Bc6 {[%emt 0:01:23]} 45. Ne5 {[%emt 0:02:42]} f6 {[%emt 0:00:10]} 46. Nxc6 {[%emt 0:02:29]} Kxc6 {[%emt 0:00:01]} 47. Kd3 {[%emt 0:00:17]} e5 {[%emt 0:00:05]} 48. Kc4 {[%emt 0:00:15]} Kb7 {[%emt 0:01:22]} 49. b5 {[%emt 0:00:05]} Kc7 {[%emt 0:02:43]} 50. b6+ {[%emt 0:00:33]} Kc6 {[%emt 0:00:12]} 51. h5 {[%emt 0:00:29]} Kd6 {[%emt 0:01:53]} 52. a6 {[%emt 0:01:17]} Kc6 {[%emt 0:00:04]} 53. a7 {[%emt 0:00:09]} Kb7 {[%emt 0:00:14]} 54. g3 {[%emt 0:00:56]} Ka8 {[%emt 0:00:04]} 55. Kc5 {[%emt 0:00:14]} Kb7 {[%emt 0:00:03]} 56. Kd6 {[%emt 0:00:11]} d3 {[%emt 0:00:25]} 57. a8=Q+ {[%emt 0:00:07]} Kxa8 {[%emt 0:00:03]} 58. Kc7 {[%emt 0:00:06]} 1-0

[Event "Fagernes Chess GM-Swiss 2025"]
[Site "Fagernes"]
[Date "2025.04.14"]
[Round "2.18"]
[White "Skotheim, Andreas"]
[Black "Vestby-Ellingsen, Mads"]
[Result "1/2-1/2"]
[Annotator "RC"]
[ECO "B51"]
[WhiteElo "2229"]
[BlackElo "2398"]
[PlyCount "83"]
[EventDate "2025.04.12"]
[EventCountry "NOR"]
[SourceTitle "playchess.com"]
[Source "ChessBase"]
[SourceQuality "1"]
[TimeControl "40/6000+30:2400+30"]

1. e4 {[%emt 0:00:42]} c5 {[%emt 0:01:10]} 2. Nf3 {[%emt 0:00:19]} d6 {[%emt 0:00:14]} 3. Bb5+ {[%emt 0:00:25]} Nd7 {[%emt 0:00:17]} 4. Ba4 {[%emt 0:01:26]} Ngf6 {[%emt 0:00:19]} 5. O-O {[%emt 0:00:34]} g6 {[%emt 0:00:46]} 6. Re1 {[%emt 0:03:56]} Bg7 {[%emt 0:00:40]} 7. c3 {[%emt 0:01:14]} O-O {[%emt 0:01:09]} 8. d4 {[%emt 0:00:51]} e5 {[%emt 0:00:40]} 9. h3 {[%emt 0:04:29]} a6 {[%emt 0:10:06]} 10. dxe5 {[%emt 0:08:05]} Nxe5 {[%emt 0:01:13]} 11. Nxe5 {[%emt 0:18:42]} dxe5 {[%emt 0:00:45]} 12. Qxd8 {[%emt 0:03:59]} Rxd8 {[%emt 0:00:12]} 13. Bc2 {[%emt 0:00:39]} Be6 {[%emt 0:03:57]} 14. Be3 {[%emt 0:05:03]} c4 {[%emt 0:01:56]} 15. Nd2 {[%emt 0:03:41]} Nd7 {[%emt 0:02:48]} 16. b3 {[%emt 0:07:01]} cxb3 {[%emt 0:03:21]} 17. Bxb3 {[%emt 0:00:22]} Bxb3 {[%emt 0:11:53]} 18. axb3 {[%emt 0:01:27]} Rac8 {[%emt 0:00:35]} 19. Nc4 {[%emt 0:14:14]} b5 {[%emt 0:25:00]} 20. Na5 {[%emt 0:06:26]} Nf8 {[%emt 0:18:32]} 21. c4 {[%emt 0:06:13]} Ne6 {[%emt 0:01:16]} 22. c5 {[%emt 0:03:06]} Nd4 {[%emt 0:07:54]} 23. Rac1 {[%emt 0:00:46]} b4 {[%emt 0:02:23]} 24. Kf1 {[%emt 0:01:45]} Rc7 {[%emt 0:06:39]} 25. Rc4 {[%emt 0:01:48]} Rb8 {[%emt 0:03:31]} 26. Ra1 {[%emt 0:03:35]} f5 {[%emt 0:04:29]} 27. Ra4 {[%emt 0:03:01]} fxe4 {[%emt 0:01:44]} 28. c6 {[%emt 0:01:31]} Rbc8 {[%emt 0:00:29]} 29. Raxb4 {[%emt 0:00:48]} Nxc6 {[%emt 0:00:28]} 30. Nxc6 {[%emt 0:01:21]} Rxc6 {[%emt 0:00:08]} 31. Rxc6 {[%emt 0:00:25]} Rxc6 {[%emt 0:00:06]} 32. Rxe4 {[%emt 0:00:13]} Rc2 {[%emt 0:01:18]} 33. Rb4 {[%emt 0:01:08]} Rb2 {[%emt 0:00:28]} 34. Rb7 {[%emt 0:00:38]} Bf8 {[%emt 0:00:25]} 35. Ra7 {[%emt 0:01:06]} Rxb3 {[%emt 0:00:16]} 36. Rxa6 {[%emt 0:00:08]} Rb7 {[%emt 0:00:25]} 37. Re6 {[%emt 0:00:50]} Re7 {[%emt 0:00:41]} 38. Rxe7 {[%emt 0:00:30]} Bxe7 {[%emt 0:00:07]} 39. Ke2 {[%emt 0:00:18]} Kf7 {[%emt 0:00:12]} 40. Kd3 {[%emt 0:00:13]} Ke6 {[%emt 0:00:08]} 41. Ke4 {[%emt 0:40:10]} Bd6 {[%emt 0:40:21]} 42. g4 {[%emt 0:01:05]} 1/2-1/2

[Event "Fagernes Chess GM-Swiss 2025"]
[Site "Fagernes"]
[Date "2025.04.14"]
[Round "2.19"]
[White "Moksh Amit Doshi"]
[Black "Hebbar, Eshaan"]
[Result "1-0"]
[Annotator "RC"]
[ECO "E97"]
[WhiteElo "2369"]
[BlackElo "2175"]
[PlyCount "77"]
[EventDate "2025.04.12"]
[EventCountry "NOR"]
[SourceTitle "playchess.com"]
[Source "ChessBase"]
[SourceQuality "1"]
[TimeControl "40/6000+30:2400+30"]

1. d4 {[%emt 0:02:53]} Nf6 {[%emt 0:00:20]} 2. c4 {[%emt 0:00:28]} g6 {[%emt 0:00:16]} 3. Nc3 {[%emt 0:01:49]} Bg7 {[%emt 0:00:13]} 4. e4 {[%emt 0:00:07]} d6 {[%emt 0:00:09]} 5. Nf3 {[%emt 0:00:23]} O-O {[%emt 0:00:21]} 6. Be2 {[%emt 0:00:04]} e5 {[%emt 0:00:12]} 7. O-O {[%emt 0:00:09]} Nc6 {[%emt 0:01:13]} 8. d5 {[%emt 0:00:09]} Ne7 {[%emt 0:00:04]} 9. b4 {[%emt 0:00:08]} a5 {[%emt 0:00:28]} 10. bxa5 {[%emt 0:00:10]} Rxa5 {[%emt 0:00:08]} 11. a4 {[%emt 0:00:21]} Ne8 {[%emt 0:02:48]} 12. Be3 {[%emt 0:00:15]} b6 {[%emt 0:07:42]} 13. Nd2 {[%emt 0:01:28]} f5 {[%emt 0:07:48]} 14. f3 {[%emt 0:01:52]} f4 {[%emt 0:06:52]} 15. Bf2 {[%emt 0:00:12]} Ra8 {[%emt 0:06:18]} 16. Nb3 {[%emt 0:03:07]} Nf6 {[%emt 0:11:20]} 17. Qc2 {[%emt 0:06:42]} Nd7 {[%emt 0:02:49]} 18. a5 {[%emt 0:02:42]} Nc5 {[%emt 0:03:04]} 19. axb6 {[%emt 0:04:10]} Rxa1 {[%emt 0:02:51]} 20. Rxa1 {[%emt 0:00:06]} cxb6 {[%emt 0:00:04]} 21. Nb5 {[%emt 0:02:08]} g5 {[%emt 0:05:10]} 22. Ra7 {[%emt 0:07:29]} h5 {[%emt 0:01:52]} 23. Nxc5 {[%emt 0:01:04]} bxc5 {[%emt 0:00:16]} 24. Be1 {[%emt 0:00:31]} Ng6 {[%emt 0:23:45]} 25. Ba5 {[%emt 0:01:59]} Qf6 {[%emt 0:00:07]} 26. Bc7 {[%emt 0:00:26]} g4 {[%emt 0:01:15]} 27. Bxd6 {[%emt 0:11:25]} Rd8 {[%emt 0:00:14]} 28. Bxc5 {[%emt 0:02:06]} Qg5 {[%emt 0:04:15]} 29. Bb6 {[%emt 0:14:42]} Rf8 {[%emt 0:01:49]} 30. Nd6 {[%emt 0:01:09]} Nh4 {[%emt 0:01:09]} 31. Nxc8 {[%emt 0:02:04]} Rxc8 {[%emt 0:06:04]} 32. fxg4 {[%emt 0:04:50]} hxg4 {[%emt 0:00:12]} 33. Bf1 {[%emt 0:02:23]} g3 {[%emt 0:04:37]} 34. d6 {[%emt 0:03:45]} gxh2+ {[%emt 0:03:37]} 35. Kh1 {[%emt 0:01:25]} Bf6 {[%emt 0:00:41]} 36. Qd2 {[%emt 0:03:16]} Kh8 {[%emt 0:03:37]} 37. d7 {[%emt 0:01:58]} Rg8 {[%emt 0:00:54]} 38. d8=Q {[%emt 0:01:33]} Bxd8 {[%emt 0:03:36]} 39. Qd7 {[%emt 0:00:07]} 1-0

[Event "Fagernes Chess GM-Swiss 2025"]
[Site "Fagernes"]
[Date "2025.04.14"]
[Round "2.20"]
[White "Lund, Gunnar"]
[Black "Den Roover, Nikolay Jorgensen"]
[Result "1-0"]
[Annotator "RC"]
[ECO "A45"]
[WhiteElo "2341"]
[BlackElo "2004"]
[PlyCount "64"]
[EventDate "2025.04.12"]
[EventCountry "NOR"]
[SourceTitle "playchess.com"]
[Source "ChessBase"]
[SourceQuality "1"]
[TimeControl "40/6000+30:2400+30"]

1. d4 {[%emt 0:03:13]} Nf6 {[%emt 0:00:11]} 2. Bg5 {[%emt 0:00:38]} g6 {[%emt 0:05:57]} 3. Bxf6 {[%emt 0:02:33]} exf6 {[%emt 0:00:05]} 4. e3 {[%emt 0:01:10]} Bg7 {[%emt 0:00:37]} 5. c4 {[%emt 0:02:23]} O-O {[%emt 0:01:20]} 6. Nc3 {[%emt 0:01:16]} f5 {[%emt 0:06:17]} 7. Nge2 {[%emt 0:08:13]} d6 {[%emt 0:12:14]} 8. g3 {[%emt 0:01:20]} c5 {[%emt 0:38:22]} 9. Bg2 {[%emt 0:06:03]} cxd4 {[%emt 0:08:51]} 10. Nxd4 {[%emt 0:04:35]} Nc6 {[%emt 0:04:59]} 11. Nde2 {[%emt 0:02:44]} Be6 {[%emt 0:05:17]} 12. b3 {[%emt 0:02:02]} Qa5 {[%emt 0:01:08]} 13. Rc1 {[%emt 0:01:19]} f4 {[%emt 0:03:13]} 14. gxf4 {[%emt 0:03:02]} Bg4 {[%emt 0:03:38]} 15. Qd2 {[%emt 0:03:32]} Rac8 {[%emt 0:04:50]} 16. Nd5 {[%emt 0:03:38]} Rfe8 {[%emt 0:01:12]} 17. Qxa5 {[%emt 0:02:10]} Nxa5 {[%emt 0:00:04]} 18. h3 {[%emt 0:00:54]} Be6 {[%emt 0:03:13]} 19. O-O {[%emt 0:00:40]} Nc6 {[%emt 0:02:43]} 20. Rfd1 {[%emt 0:01:51]} Kf8 {[%emt 0:01:36]} 21. Kh2 {[%emt 0:00:15]} b6 {[%emt 0:02:10]} 22. Nec3 {[%emt 0:00:46]} Bf5 {[%emt 0:01:44]} 23. Rd2 {[%emt 0:00:35]} h6 {[%emt 0:01:01]} 24. Nb5 {[%emt 0:00:51]} Red8 {[%emt 0:00:28]} 25. Ndc3 {[%emt 0:09:16]} Ke7 {[%emt 0:00:48]} 26. Bxc6 {[%emt 0:00:41]} Rxc6 {[%emt 0:00:01]} 27. Nxa7 {[%emt 0:00:11]} Rc5 {[%emt 0:00:31]} 28. Nd5+ {[%emt 0:00:35]} Kf8 {[%emt 0:00:41]} 29. b4 {[%emt 0:00:43]} Rxd5 {[%emt 0:00:47]} 30. cxd5 {[%emt 0:02:57]} g5 {[%emt 0:00:37]} 31. fxg5 {[%emt 0:01:27]} hxg5 {[%emt 0:00:08]} 32. Kg2 {[%emt 0:00:44]} Bf6 {[%emt 0:00:00]} 1-0

[Event "Fagernes Chess GM-Swiss 2025"]
[Site "Fagernes"]
[Date "2025.04.14"]
[Round "2.21"]
[White "Kreken, Eivind Grunt"]
[Black "Gasland, Lukas Dominik"]
[Result "1-0"]
[Annotator "RC"]
[ECO "B32"]
[WhiteElo "2326"]
[BlackElo "1994"]
[PlyCount "109"]
[EventDate "2025.04.12"]
[EventCountry "NOR"]
[SourceTitle "playchess.com"]
[Source "ChessBase"]
[SourceQuality "1"]
[TimeControl "40/6000+30:2400+30"]

1. e4 {[%emt 0:00:02]} c5 {[%emt 0:02:04]} 2. Nf3 {[%emt 0:00:13]} Nc6 {[%emt 0:00:06]} 3. d4 {[%emt 0:00:03]} cxd4 {[%emt 0:00:07]} 4. Nxd4 {[%emt 0:00:01]} e5 {[%emt 0:00:13]} 5. Nb5 {[%emt 0:00:09]} a6 {[%emt 0:00:06]} 6. Nd6+ {[%emt 0:00:12]} Bxd6 {[%emt 0:00:07]} 7. Qxd6 {[%emt 0:00:04]} Qf6 {[%emt 0:00:08]} 8. Qd1 {[%emt 0:01:06]} Qg6 {[%emt 0:00:11]} 9. Nc3 {[%emt 0:01:06]} d5 {[%emt 0:04:52]} 10. Nxd5 {[%emt 0:00:36]} Qxe4+ {[%emt 0:00:11]} 11. Be3 {[%emt 0:00:58]} Nd4 {[%emt 0:10:18]} 12. Nc7+ {[%emt 0:01:09]} Ke7 {[%emt 0:03:54]} 13. Be2 {[%emt 0:01:45]} Rb8 {[%emt 0:18:03]} 14. O-O {[%emt 0:26:50]} Qc6 {[%emt 0:08:18]} 15. c3 {[%emt 0:21:57]} Nxe2+ {[%emt 0:04:22]} 16. Qxe2 {[%emt 0:00:01]} Qxc7 {[%emt 0:00:27]} 17. Bb6 {[%emt 0:01:05]} Qd6 {[%emt 0:10:06]} 18. Rad1 {[%emt 0:06:42]} Bg4 {[%emt 0:02:10]} 19. Qe3 {[%emt 0:03:43]} Qe6 {[%emt 0:07:44]} 20. Qc5+ {[%emt 0:02:31]} Ke8 {[%emt 0:00:07]} 21. Qc7 {[%emt 0:01:12]} Qc8 {[%emt 0:10:30]} 22. Qxe5+ {[%emt 0:04:11]} Ne7 {[%emt 0:00:14]} 23. Rd8+ {[%emt 0:03:08]} Qxd8 {[%emt 0:00:07]} 24. Bxd8 {[%emt 0:00:09]} Rxd8 {[%emt 0:00:05]} 25. Re1 {[%emt 0:16:22]} Be6 {[%emt 0:00:42]} 26. Qc7 {[%emt 0:03:20]} f6 {[%emt 0:06:23]} 27. Qxb7 {[%emt 0:04:35]} Kf7 {[%emt 0:00:10]} 28. Qxa6 {[%emt 0:01:08]} Bd5 {[%emt 0:00:10]} 29. c4 {[%emt 0:01:00]} Be4 {[%emt 0:02:15]} 30. f3 {[%emt 0:01:34]} Bf5 {[%emt 0:00:30]} 31. c5 {[%emt 0:01:23]} Rhe8 {[%emt 0:00:54]} 32. c6 {[%emt 0:01:55]} Rd6 {[%emt 0:01:35]} 33. Qb7 {[%emt 0:01:54]} Be6 {[%emt 0:00:41]} 34. c7 {[%emt 0:01:56]} Rc6 {[%emt 0:01:05]} 35. Re3 {[%emt 0:02:57]} Rc8 {[%emt 0:02:29]} 36. Rc3 {[%emt 0:00:31]} R8xc7 {[%emt 0:00:37]} 37. Qxc7 {[%emt 0:00:14]} Rxc7 {[%emt 0:00:04]} 38. Rxc7 {[%emt 0:00:04]} Bxa2 {[%emt 0:00:07]} 39. b4 {[%emt 0:00:35]} Ke6 {[%emt 0:03:00]} 40. b5 {[%emt 0:00:13]} Kd6 {[%emt 0:03:39]} 41. b6 {[%emt 0:40:44]} Nd5 {[%emt 0:45:28]} 42. Rc2 {[%emt 0:01:30]} Nxb6 {[%emt 0:04:47]} 43. Rxa2 {[%emt 0:00:05]} Nd5 {[%emt 0:00:39]} 44. Kf2 {[%emt 0:00:00]} g5 {[%emt 0:00:00]} 45. h4 {[%emt 0:00:00]} Ke6 {[%emt 0:00:00]} 46. Ra7 {[%emt 0:00:00]} Ne7 {[%emt 0:00:00]} 47. Ra6+ {[%emt 0:00:00]} Kf7 {[%emt 0:00:00]} 48. hxg5 {[%emt 0:00:00]} fxg5 {[%emt 0:00:00]} 49. Ke3 {[%emt 0:00:00]} Kg7 {[%emt 0:00:00]} 50. Ke4 {[%emt 0:00:00]} h6 {[%emt 0:00:00]} 51. g3 {[%emt 0:00:00]} Ng8 {[%emt 0:00:00]} 52. Kf5 {[%emt 0:00:00]} Ne7+ {[%emt 0:00:00]} 53. Ke6 {[%emt 0:00:00]} Ng8 {[%emt 0:00:00]} 54. f4 {[%emt 0:00:00]} gxf4 {[%emt 0:00:00]} 55. gxf4 {[%emt 0:00:00]} 1-0

[Event "Fagernes Chess GM-Swiss 2025"]
[Site "Fagernes"]
[Date "2025.04.14"]
[Round "2.22"]
[White "Fiskaaen, Martin Holten"]
[Black "Haugen, Lars Tormod"]
[Result "1-0"]
[Annotator "RC"]
[ECO "B27"]
[WhiteElo "2283"]
[BlackElo "1988"]
[PlyCount "47"]
[EventDate "2025.04.12"]
[EventCountry "NOR"]
[SourceTitle "playchess.com"]
[Source "ChessBase"]
[SourceQuality "1"]
[TimeControl "40/6000+30:2400+30"]

1. e4 {[%emt 0:00:04]} c5 {[%emt 0:07:23]} 2. Nf3 {[%emt 0:00:11]} g6 {[%emt 0:01:05]} 3. c3 {[%emt 0:00:31]} Bg7 {[%emt 0:04:41]} 4. d4 {[%emt 0:00:25]} cxd4 {[%emt 0:00:04]} 5. cxd4 {[%emt 0:00:24]} d5 {[%emt 0:00:04]} 6. e5 {[%emt 0:01:28]} a6 {[%emt 0:00:12]} 7. Be2 {[%emt 0:01:20]} Nc6 {[%emt 0:00:26]} 8. O-O {[%emt 0:01:18]} f6 {[%emt 0:06:39]} 9. Re1 {[%emt 0:10:30]} fxe5 {[%emt 0:03:43]} 10. dxe5 {[%emt 0:05:41]} e6 {[%emt 0:03:21]} 11. Bd3 {[%emt 0:06:17]} Nh6 {[%emt 0:11:32]} 12. Bg5 {[%emt 0:04:23]} Qc7 {[%emt 0:00:35]} 13. Nbd2 {[%emt 0:05:55]} O-O {[%emt 0:04:21]} 14. Rc1 {[%emt 0:02:53]} Ng4 {[%emt 0:15:12]} 15. h4 {[%emt 0:16:11]} Qf7 {[%emt 0:06:51]} 16. Rxc6 {[%emt 0:14:36]} bxc6 {[%emt 0:00:44]} 17. Qa4 {[%emt 0:00:05]} Nxe5 {[%emt 0:25:57]} 18. Rxe5 {[%emt 0:00:29]} Bxe5 {[%emt 0:00:07]} 19. Nxe5 {[%emt 0:00:03]} Qxf2+ {[%emt 0:00:23]} 20. Kh2 {[%emt 0:00:08]} Rb8 {[%emt 0:08:52]} 21. Nb3 {[%emt 0:24:32]} c5 {[%emt 0:00:55]} 22. Ng4 {[%emt 0:01:02]} Qe1 {[%emt 0:02:11]} 23. Nxc5 {[%emt 0:02:50]} Rxb2 {[%emt 0:02:47]} 24. Qd4 {[%emt 0:07:24]} 1-0